fUSD/lending_fUSD_20260203
["ID","MTS","AMOUNT","RATE_DAILY","PERIOD"]
[404402622,1770108642121,-250.0,0.00015,2]
[404402623,1770108642131,-500.98,0.00015009,2]
[404402624,1770108642140,-160.0,0.00015014,2]
[404402625,1770108642150,-1511.57,0.00015025,2]
[404402626,1770108642160,-923.0,0.00015062,2]
[404402627,1770108642169,-151.0,0.00015083,2]
[404402628,1770108642179,-156.587,0.00015083,2]
[404402629,1770108642188,-162.380719,0.00015083,2]
[404402630,1770108642198,-157.73690742,0.00015083,2]
[404402631,1770108642207,-721.12765535,0.00015083,2]
[404402632,1770108642218,-500.0,0.00015083,2]
[404402633,1770108642230,-500.0,0.00015083,2]
[404402634,1770108642239,-500.0,0.00015083,2]
[404402635,1770108642249,-500.0,0.00015083,2]
[404402636,1770108642260,-500.0,0.00015083,2]
[404402637,1770108642269,-500.0,0.00015083,2]
[404402638,1770108642279,-500.0,0.00015083,2]
[404402639,1770108642290,-500.0,0.00015083,2]
[404402640,1770108642300,-500.0,0.00015083,2]
[404402641,1770108642309,-500.0,0.00015083,2]
[404402642,1770108642319,-500.0,0.00015083,2]
[404402643,1770108642328,-174.61919141,0.00015083,2]
[404402644,1770108642337,-578.20924308,0.00015083,2]
[404402645,1770108642347,-322.6107,0.00015083,2]
[404402646,1770108642356,-209.40437684,0.00015083,2]
[404402647,1770108642365,-217.15233878,0.00015138,2]
[404402648,1770108642375,-225.18697532,0.00015193,2]
[404402649,1770108642384,-500.0,0.00015233,2]
[404402650,1770108642393,-233.51889341,0.00015248,2]
[404402651,1770108642403,-1511.57,0.00015299,2]
[404402652,1770108642412,-242.15909246,0.00015303,2]
[404402653,1770108642421,-251.11897888,0.00015358,2]
[404402654,1770108642430,-260.4103811,0.00015413,2]
[404402655,1770108642439,-150.0,0.00015462,7]
[404402656,1770108642448,-475.027766,0.00015462,7]
[404402657,1770108642458,-800.055532,0.00015462,7]
[404402658,1770108642467,-1125.083298,0.00015462,7]
[404402659,1770108642476,-1450.111065,0.00015462,7]
[404402660,1770108642486,-1775.138831,0.00015462,7]
[404402661,1770108642495,-2100.166597,0.00015462,7]
[404402662,1770108642505,-2425.194363,0.00015462,7]
[404402663,1770108642514,-2750.22213,0.00015462,7]
[404402664,1770108642524,-3075.249896,0.00015462,7]
[404402665,1770108642533,-270.0455652,0.00015468,2]
[404402666,1770108642543,-11623.0,0.000155,2]
[404402667,1770108642552,-280.03725112,0.00015523,2]
[404402668,1770108642561,-1511.57,0.00015573,2]
[404402669,1770108642570,-290.39862941,0.00015578,2]
[404402670,1770108642580,-181.08010149,0.00015631,2]
[404402671,1770108642589,-301.1433787,0.00015633,2]
[404402672,1770108642599,-67352.24758732,0.0001564,2]
[404402673,1770108642608,-150.0,0.0001566,7]
[404402674,1770108642618,-374.613885,0.0001566,7]
[404402675,1770108642627,-599.227771,0.0001566,7]
[404402676,1770108642636,-823.841657,0.0001566,7]
[404402677,1770108642646,-1048.455543,0.0001566,7]
[404402678,1770108642655,-1273.069429,0.0001566,7]
[404402679,1770108642664,-1497.683314,0.0001566,7]
[404402680,1770108642673,-1722.2972,0.0001566,7]
[404402681,1770108642683,-1946.911086,0.0001566,7]
[404402682,1770108642692,-2171.524972,0.0001566,7]
[404402683,1770108642701,-150.0,0.00015714,2]
[404402684,1770108642711,-1511.57,0.00015847,2]
[404402685,1770108642720,-500.0,0.00015866,2]
[404402686,1770108642730,-150.01401758,0.00015925,2]
[404402687,1770108642739,-5000.0,0.0001596,2]
[404402688,1770108642748,-1852.42,0.00015965,2]
[404402689,1770108642757,-256.701042,0.00016,2]
[404402690,1770108642766,-178.66,0.00016002,2]
[404402691,1770108642776,-9999.99,0.00016116,2]
[404402692,1770108642785,-1511.79834379,0.00016121,2]
[404402693,1770108642795,-187.78006525,0.00016179,2]
[404402694,1770108642804,-614.3,0.00016262,2]
[404402695,1770108642814,-614.3,0.00016262,2]
[404402696,1770108642823,-775.48,0.00016438,2]
[404402697,1770108642832,-500.0,0.00016438,2]
[404402698,1770108642841,-330.22332732,0.00016438,2]
[404402699,1770108642851,-500.0,0.00016438,2]
[404402700,1770108642860,-500.0,0.00016438,2]
[404402701,1770108642870,-2234.80084805,0.00016438,2]
[404402702,1770108642879,-2234.80084805,0.00016438,2]
[404402703,1770108642888,-2234.80084805,0.00016438,2]
[404402704,1770108642898,-2234.80084805,0.00016438,2]
[404402705,1770108642907,-2234.80084805,0.00016438,2]
[404402706,1770108642917,-2234.80084805,0.00016438,2]
[404402707,1770108642926,-2234.80084805,0.00016438,2]
[404402708,1770108642936,-2234.80084805,0.00016438,2]
[404402709,1770108642945,-2234.80084805,0.00016438,2]
[404402710,1770108642955,-2234.80084805,0.00016438,2]
[404402711,1770108642964,-2234.80084805,0.00016438,2]
[404402712,1770108642973,-2234.80084805,0.00016438,2]
[404402713,1770108642983,-2234.80084805,0.00016438,2]
[404402714,1770108642992,-2234.80084805,0.00016438,2]
[404402715,1770108643002,-2234.80084805,0.00016438,2]
[404402716,1770108643011,-2234.80084805,0.00016438,2]
[404402717,1770108643021,-2234.80084805,0.00016438,2]
[404402718,1770108643031,-2234.80084805,0.00016438,2]
[404402719,1770108643040,-2234.80084805,0.00016438,2]
[404402720,1770108643049,-2234.80084805,0.00016438,2]
[404402721,1770108643059,-2234.80084805,0.00016438,2]
[404402722,1770108643068,-2234.80084805,0.00016438,2]
[404402723,1770108643077,-2234.80084805,0.00016438,2]
[404402724,1770108643087,-2234.80084805,0.00016438,2]
[404402725,1770108643096,-2234.80084805,0.00016438,2]
[404402727,1770108643107,-2234.80084805,0.00016438,2]
[404402729,1770108643116,-2234.80084805,0.00016438,2]
[404402731,1770108643126,-2234.80084805,0.00016438,2]
[404402732,1770108643135,-2234.80084805,0.00016438,2]
[404402733,1770108643145,-2234.80084805,0.00016438,2]
[404402734,1770108643154,-2234.80084805,0.00016438,2]
[404402735,1770108643164,-2234.80084805,0.00016438,2]
[404402736,1770108643173,-2234.80084805,0.00016438,2]
[404402737,1770108643183,-2234.80084805,0.00016438,2]
[404402738,1770108643192,-2234.80084805,0.00016438,2]
[404402739,1770108643202,-2234.80084805,0.00016438,2]
[404402740,1770108643212,-2234.80084805,0.00016438,2]
[404402741,1770108643224,-2234.80084805,0.00016438,2]
[404402742,1770108643233,-2234.80084805,0.00016438,2]
[404402743,1770108643243,-2234.80084805,0.00016438,2]
[404402744,1770108643254,-2234.80084805,0.00016438,2]
[404402745,1770108643263,-2234.80084805,0.00016438,2]
[404402746,1770108643273,-2234.80084805,0.00016438,2]
[404402747,1770108643283,-2234.80084805,0.00016438,2]
[404402748,1770108643292,-2234.80084805,0.00016438,2]
[404402749,1770108643302,-2234.80084805,0.00016438,2]
[404402750,1770108643311,-2234.80084805,0.00016438,2]
[404402751,1770108643321,-2234.80084805,0.00016438,2]
[404402752,1770108643330,-2234.80084805,0.00016438,2]
[404402753,1770108643542,-2234.80084805,0.00016438,2]
[404402754,1770108643551,-2234.80084805,0.00016438,2]
[404402755,1770108643560,-2234.80084805,0.00016438,2]
[404402756,1770108643570,-2234.80084805,0.00016438,2]
[404402757,1770108643579,-2234.80084805,0.00016438,2]
[404402758,1770108643588,-2234.80084805,0.00016438,2]
[404402759,1770108643597,-2234.80084805,0.00016438,2]
[404402760,1770108643606,-2234.80084805,0.00016438,2]
[404402761,1770108643615,-2234.80084805,0.00016438,2]
[404402762,1770108643624,-2234.80084805,0.00016438,2]
[404402763,1770108643633,-2234.80084805,0.00016438,2]
[404402764,1770108643643,-2234.80084805,0.00016438,2]
[404402765,1770108643651,-2234.80084805,0.00016438,2]
[404402766,1770108643661,-800.0,0.00016438,2]
[404402767,1770108643673,-200.0,0.00016438,2]
[404402768,1770108643684,-6042.35870632,0.00016443,2]
[404402769,1770108643693,-334.5472959,0.00016452,2]
[404402770,1770108643705,-500.98,0.0001649,2]
[404402771,1770108643715,-1500.0,0.000165,2]
[404402772,1770108643726,-1084.09055279,0.0001651,2]
[404402773,1770108643736,-200.05997466,0.00016546,2]
[404402774,1770108643745,-500.0,0.00016603,2]
[404402775,1770108643756,-1000.0,0.00016688,7]
[404402776,1770108643766,-194.72792766,0.00016727,2]
[404402777,1770108643776,-67352.24758732,0.0001677,2]
[404402778,1770108643785,-19999.99,0.00016922,2]
[404402779,1770108643794,-200.0,0.00016983,2]
[404402780,1770108643803,-500.0,0.00017,7]
[404402781,1770108643812,-500.0,0.00017,7]
[404402782,1770108643822,-500.0,0.00017,7]
[404402783,1770108643831,-500.0,0.00017,7]
[404402784,1770108643840,-500.0,0.00017,7]
[404402785,1770108643849,-500.0,0.00017,7]
[404402786,1770108643858,-500.0,0.00017,7]
[404402787,1770108643867,-500.0,0.00017,7]
[404402789,1770108643877,-500.0,0.00017,7]
[404402791,1770108643887,-500.0,0.00017,7]
[404402793,1770108643897,-500.0,0.00017,7]
[404402795,1770108643916,-500.0,0.00017,7]
[404402796,1770108643936,-500.0,0.00017,7]
[404402797,1770108643948,-500.0,0.00017,7]
[404402798,1770108643959,-500.0,0.00017,7]
[404402799,1770108643970,-500.0,0.00017,7]
[404402801,1770108643979,-500.0,0.00017,7]
[404402803,1770108643992,-500.0,0.00017,7]
[404402806,1770108644001,-500.0,0.00017,7]
[404402809,1770108644011,-500.0,0.00017,7]
[404402811,1770108644020,-500.0,0.00017,7]
[404402813,1770108644029,-500.0,0.00017,7]
[404402815,1770108644039,-500.0,0.00017,7]
[404402816,1770108644048,-500.0,0.00017,7]
[404402817,1770108644057,-500.0,0.00017,7]
[404402818,1770108644068,-500.0,0.00017,7]
[404402819,1770108644077,-500.0,0.00017,7]
[404402820,1770108644087,-500.0,0.00017,7]
[404402821,1770108644096,-500.0,0.00017,7]
[404402822,1770108644105,-500.0,0.00017,7]
[404402823,1770108644114,-500.0,0.00017,7]
[404402824,1770108644124,-500.0,0.00017,7]
[404402825,1770108644134,-500.0,0.00017,7]
[404402826,1770108644144,-500.0,0.00017,7]
[404402827,1770108644153,-500.0,0.00017,7]
[404402828,1770108644164,-500.0,0.00017,7]
[404402829,1770108644174,-500.0,0.00017,7]
[404402830,1770108644184,-500.0,0.00017,7]
[404402831,1770108644194,-500.0,0.00017,7]
[404402832,1770108644205,-500.0,0.00017,7]
[404402833,1770108644216,-500.0,0.00017,7]
[404402834,1770108644228,-500.0,0.00017,7]
[404402835,1770108644237,-500.0,0.00017,7]
[404402836,1770108644248,-500.0,0.00017,7]
[404402837,1770108644258,-500.0,0.00017,7]
[404402838,1770108644268,-500.0,0.00017,7]
[404402839,1770108644278,-500.0,0.00017,7]
[404402840,1770108644288,-500.0,0.00017,7]
[404402841,1770108644301,-500.0,0.00017,7]
[404402842,1770108644310,-500.0,0.00017,7]
[404402843,1770108644320,-500.0,0.00017,7]
[404402844,1770108644330,-500.0,0.00017,7]
[404402845,1770108644342,-500.0,0.00017,7]
[404402846,1770108644353,-500.0,0.00017,7]
[404402847,1770108644363,-500.0,0.00017,7]
[404402848,1770108644373,-160.0,0.00017,7]
[404402849,1770108644383,-500.0,0.00017,7]
[404402850,1770108644393,-500.0,0.00017,7]
[404402851,1770108644402,-500.0,0.00017,7]
[404402852,1770108644412,-500.0,0.00017,7]
[404402853,1770108644422,-500.0,0.00017,7]
[404402854,1770108644432,-500.0,0.00017,7]
[404402855,1770108644444,-500.0,0.00017,7]
[404402856,1770108644454,-500.0,0.00017,7]
[404402857,1770108644463,-500.0,0.00017,7]
[404402858,1770108644474,-500.0,0.00017,7]
[404402859,1770108644484,-500.0,0.00017,7]
[404402860,1770108644494,-500.0,0.00017,7]
[404402861,1770108644504,-500.0,0.00017,7]
[404402862,1770108644514,-500.0,0.00017,7]
[404402863,1770108644524,-500.0,0.00017,7]
[404402864,1770108644535,-500.0,0.00017,7]
[404402865,1770108644544,-500.0,0.00017,7]
[404402866,1770108644555,-500.0,0.00017,7]
[404402867,1770108644564,-500.0,0.00017,7]
[404402868,1770108644573,-500.0,0.00017,7]
[404402869,1770108644583,-500.0,0.00017,7]
[404402870,1770108644594,-500.0,0.00017,7]
[404402871,1770108644605,-500.0,0.00017,7]
[404402872,1770108644615,-500.0,0.00017,7]
[404402873,1770108644625,-500.0,0.00017,7]
[404402874,1770108644635,-500.0,0.00017,7]
[404402875,1770108644644,-500.0,0.00017,7]
[404402876,1770108644653,-500.0,0.00017,7]
[404402877,1770108644664,-404.8,0.00017,7]
[404402878,1770108644674,-500.0,0.00017,7]
[404402879,1770108644683,-500.0,0.00017,7]
[404402880,1770108644692,-500.0,0.00017,7]
[404402881,1770108644702,-500.0,0.00017,7]
[404402882,1770108644712,-500.0,0.00017,7]
[404402883,1770108644723,-500.0,0.00017,7]
[404402884,1770108644732,-500.0,0.00017,7]
[404402885,1770108644742,-500.0,0.00017,7]
[404402886,1770108644752,-500.0,0.00017,7]
[404402887,1770108644763,-500.0,0.00017,7]
[404402888,1770108644772,-500.0,0.00017,7]
[404402889,1770108644782,-500.0,0.00017,7]
[404402890,1770108644792,-500.0,0.00017,7]
[404402891,1770108644802,-500.0,0.00017,7]
[404402892,1770108644812,-500.0,0.00017,7]
[404402893,1770108644822,-500.0,0.00017,7]
[404402894,1770108644832,-500.0,0.00017,7]
[404402895,1770108644843,-500.0,0.00017,7]
[404402896,1770108644852,-500.0,0.00017,7]
[404402897,1770108644863,-500.0,0.00017,7]
[404402898,1770108644875,-166.51,0.00017,7]
[404402899,1770108644887,-300.0,0.00017,2]
[404402900,1770108644897,-1500.0,0.00017,2]
[404402901,1770108644911,-1000.0,0.00017083,2]
[404402902,1770108644921,-559.99,0.00017178,2]
[404402903,1770108644932,-559.99,0.00017178,2]
[404402904,1770108644947,-150.0,0.00017178,2]
[404402905,1770108644963,-559.99,0.00017178,2]
[404402906,1770108644974,-150.0,0.00017178,2]
[404402907,1770108644984,-559.99,0.00017178,2]
[404402908,1770108644995,-150.0,0.00017178,2]
[404402909,1770108645005,-559.99,0.00017178,2]
[404402910,1770108645016,-150.0,0.00017178,2]
[404402911,1770108645028,-150.0,0.00017178,2]
[404402912,1770108645038,-559.99,0.00017178,2]
[404402913,1770108645049,-559.99,0.00017178,2]
[404402914,1770108645060,-329.39,0.00017178,2]
[404402915,1770108645070,-5888.0,0.0001722,2]
[404402916,1770108645080,-614.3,0.00017221,2]
[404402917,1770108645089,-614.3,0.00017221,2]
[404402918,1770108645099,-614.43,0.00017221,2]
[404402919,1770108645109,-614.43,0.00017221,2]
[404402920,1770108645119,-614.3,0.00017221,2]
[404402921,1770108645129,-614.3,0.00017221,2]
[404402922,1770108645139,-614.3,0.00017221,2]
[404402923,1770108645149,-614.43,0.00017221,2]
[404402924,1770108645159,-614.3,0.00017221,2]
[404402925,1770108645168,-614.3,0.00017221,2]
[404402926,1770108645178,-614.3,0.00017221,2]
[404402927,1770108645188,-614.43,0.00017221,2]
[404402928,1770108645198,-1000.0,0.0001726,2]
[404402929,1770108645207,-201.93286099,0.00017275,2]
[404402930,1770108645221,-500.0,0.00017288,2]
[404402931,1770108645231,-172.57,0.00017358,2]
[404402932,1770108645240,-172.57,0.00017358,2]
[404402933,1770108645249,-172.53,0.00017358,2]
[404402934,1770108645260,-172.53,0.00017358,2]
[404402935,1770108645269,-200.0,0.00017373,2]
[404402936,1770108645280,-258.51,0.00017376,2]
[404402937,1770108645293,-5888.0,0.0001743,2]
[404402938,1770108645303,-150.0,0.00017452,2]
[404402939,1770108645313,-150.0,0.00017452,2]
[404402940,1770108645324,-150.0,0.00017452,2]
[404402941,1770108645333,-178.66,0.00017457,2]
[404402942,1770108645343,-160.0,0.000175,7]
[404402943,1770108645353,-1500.0,0.000175,2]
[404402944,1770108645363,-1500.0,0.000175,6]
[404402945,1770108645372,-1000.0,0.00017534,2]
[404402946,1770108645381,-30000.0,0.00017577,2]
[404402947,1770108645390,-1500.0,0.000176,6]
[404402948,1770108645399,-587.8745622,0.0001764,2]
[404402949,1770108645408,-1100.0,0.00017643,7]
[404402950,1770108645417,-218.49286951,0.00017679,2]
[404402951,1770108645427,-1500.0,0.000177,6]
[404402952,1770108645436,-1000.0,0.00017724,2]
[404402953,1770108645446,-150.0,0.00017726,2]
[404402954,1770108645455,-1000.0,0.00017733,2]
[404402955,1770108645466,-1000.0,0.00017739,2]
[404402956,1770108645475,-150.0,0.0001774,2]
[404402957,1770108645485,-1000.0,0.00017742,2]
[404402958,1770108645495,-1000.0,0.00017747,2]
[404402959,1770108645504,-1000.0,0.00017754,2]
[404402960,1770108645514,-150.0,0.00017757,2]
[404402961,1770108645524,-5888.0,0.0001776,2]
[404402962,1770108645534,-1000.0,0.00017765,2]
[404402963,1770108645543,-1000.0,0.00017773,2]
[404402964,1770108645552,-1000.0,0.00017778,2]
[404402965,1770108645561,-150.0,0.00017779,2]
[404402966,1770108645570,-150.0,0.0001778,2]
[404402967,1770108645579,-1000.0,0.00017782,2]
[404402968,1770108645588,-1000.0,0.00017784,2]
[404402969,1770108645597,-2026.44259501,0.000178,2]
[404402970,1770108645606,-1500.0,0.000178,6]
[404402971,1770108645615,-1000.0,0.00017801,2]
[404402972,1770108645625,-1000.0,0.00017808,2]
[404402973,1770108645634,-250.0,0.00017808,20]
[404402974,1770108645644,-250.0,0.00017808,20]
[404402975,1770108645653,-250.0,0.00017808,20]
[404402976,1770108645662,-250.0,0.00017808,20]
[404402977,1770108645671,-250.0,0.00017808,20]
[404402978,1770108645680,-285.815377,0.00017808,20]
[404402979,1770108645689,-3760.56275963,0.0001782,10]
[404402980,1770108645698,-2000.0,0.0001782,2]
[404402981,1770108645707,-2000.0,0.0001782,2]
[404402982,1770108645717,-346.92554585,0.00017821,2]
[404402983,1770108645727,-747.8093786,0.00017822,2]
[404402984,1770108645736,-599.60298507,0.00017822,2]
[404402985,1770108645745,-209.40437684,0.00017823,2]
[404402986,1770108645754,-2026.44259501,0.00017825,2]
[404402987,1770108645763,-150.0,0.00017834,2]
[404402988,1770108645772,-1000.0,0.00017839,2]
[404402989,1770108645782,-2026.44259501,0.0001785,2]
[404402990,1770108645790,-1000.0,0.00017851,2]
[404402991,1770108645799,-1000.0,0.00017853,2]
[404402992,1770108645808,-200.0,0.00017855,2]
[404402993,1770108645817,-1000.0,0.00017856,2]
[404402994,1770108645827,-200.0,0.00017856,2]
[404402995,1770108645836,-1000.0,0.00017859,2]
[404402996,1770108645845,-25000.0,0.00017865,3]
[404402997,1770108645854,-1000.0,0.00017866,2]
[404402998,1770108645863,-150.0,0.00017868,2]
[404402999,1770108645872,-1000.0,0.00017871,2]
[404403001,1770108645882,-25000.0,0.00017874,3]
[404403003,1770108645892,-2026.44259501,0.00017875,2]
[404403005,1770108645901,-5888.0,0.00017879,2]
[404403006,1770108645910,-25000.0,0.00017882,3]
[404403007,1770108645920,-25000.0,0.00017891,3]
[404403008,1770108645930,-983.42551089,0.00017899,2]
[404403012,1770108645992,-2026.44259501,0.000179,2]
[404403013,1770108646001,-500.0,0.000179,2]
[404403014,1770108646009,-25000.0,0.000179,3]
[404403015,1770108646019,-361.84102799,0.000179,2]
[404403016,1770108646027,-341.83713414,0.000179,2]
[404403017,1770108646036,-23106.24832845,0.000179,3]
[404403018,1770108646046,-67352.24758732,0.000179,2]
[404403019,1770108646055,-1894.0,0.000179,6]
[404403020,1770108646063,-183.18333192,0.000179,2]
[404403021,1770108646072,-6042.35870632,0.000179,2]
[404403022,1770108646081,-17974.0,0.000179,2]
[404403023,1770108646090,-150.0,0.0001791,2]
[404403024,1770108646099,-1000.0,0.00017912,2]
[404403025,1770108646109,-157.95285948,0.00017915,2]
[404403026,1770108646118,-1400.0,0.00017917,7]
[404403027,1770108646127,-150.0,0.00017921,2]
[404403028,1770108646136,-150.0,0.00017942,2]
[404403029,1770108646145,-1000.0,0.0001795,2]
[404403030,1770108646154,-1000.0,0.00017962,2]
[404403031,1770108646163,-1000.0,0.0001797,2]
[404403032,1770108646172,-150.0,0.00017971,2]
[404403033,1770108646181,-150.0,0.00017972,2]
[404403034,1770108646190,-150.0,0.00017975,2]
[404403035,1770108646199,-1000.0,0.00017975,2]
[404403036,1770108646208,-1000.0,0.00017978,2]
[404403037,1770108646219,-500.87084133,0.00017982,2]
[404403038,1770108646227,-1000.0,0.00017985,2]
[404403039,1770108646237,-150.0,0.00017986,2]
[404403040,1770108646246,-1000.0,0.00017989,2]
[404403042,1770108646256,-151.0,0.00017997,2]
[404403044,1770108646265,-300.0,0.00017999,2]
[404403046,1770108646274,-300.0,0.00017999,2]
[404403047,1770108646285,-300.0,0.00017999,2]
[404403048,1770108646295,-1505766.3284245,0.00018,2]
[404403049,1770108646470,-1378.40216841,0.00018,2]
[404403052,1770108646803,-1.7e-07,0.00018,2]
[404403056,1770108646828,-840.8243908,0.00018,2]
[404403058,1770108646840,-1621.15000445,0.00018,2]
[404403060,1770108646851,-4264.09911204,0.00018,2]
[404403063,1770108646863,-3736435.0913199,0.00018,2]
[404403065,1770108646872,-3691997.36996515,0.00018,2]
[404403067,1770108646883,-448.1119256,0.00018,2]
[404403069,1770108646893,-374.10410906,0.00018,2]
[404403071,1770108646904,-497.12974831,0.00018,2]
[404403073,1770108646915,-8310.0,0.00018,2]
[404403079,1770108648354,-2343.68669856,0.0001324,2]
[404403080,1770108648366,-3861.24372275,0.0001324,2]
[404403081,1770108648375,-151.0,0.00013673,2]
[404403082,1770108648385,-119.48015805,0.00013673,2]
[404403083,1770108648396,-31.51984195,0.00013673,2]
[404403084,1770108648406,-614.43,0.00016262,2]
[404403085,1770108648416,-17896.05015805,0.00018,2]
[404403086,1770108648549,-6204.93042131,0.00014355,2]
[404403087,1770108648560,-248.57985243,0.00017577,2]
[404403088,1770108648569,-647.69709791,0.00017749,2]
[404403089,1770108669487,5761.311,7.63e-05,2]
[404403090,1770108693896,500.0,7.63e-05,2]
[404403091,1770108718115,3738.699,7.63e-05,2]
[404403092,1770108718142,10000.01,7.63e-05,2]
[404403093,1770108718169,10000.01,7.63e-05,2]
[404403094,1770108718198,10000.01,7.63e-05,2]
[404403095,1770108718228,10000.01,7.63e-05,2]
[404403096,1770108718258,10000.01,7.63e-05,2]
[404403097,1770108718287,10000.01,7.63e-05,2]
[404403098,1770108718315,10000.01,7.63e-05,2]
[404403099,1770108718340,10000.01,7.63e-05,2]
[404403100,1770108718365,10000.01,7.63e-05,2]
[404403101,1770108719240,-1018.38061974,7.63e-05,2]
[404403102,1770108721547,300.0,7.629e-05,2]
[404403103,1770108725841,-500.0,7.63e-05,2]
[404403104,1770108729180,-215.54946833,7.63e-05,2]
[404403105,1770108733474,-450.74110851,7.63e-05,2]
[404403106,1770108735616,-452.0,7.63e-05,2]
[404403107,1770108737152,-281.24012483,7.63e-05,2]
[404403108,1770108738878,1227.41463025,7.629e-05,2]
[404403109,1770108740324,-560.22087833,7.63e-05,2]
[404403110,1770108742974,-163.20854716,7.63e-05,2]
[404403111,1770108746225,-241.10012185,7.63e-05,2]
[404403112,1770108749604,-798.09722767,7.63e-05,2]
[404403113,1770108751133,-337.02390658,7.63e-05,2]
[404403114,1770108752784,-560.22087833,7.63e-05,2]
[404403115,1770108753135,1227.41463025,7.629e-05,2]
[404403116,1770108757157,-262.07596842,7.63e-05,2]
[404403117,1770108761389,-174.59224297,7.63e-05,2]
[404403118,1770108765155,-302.0,7.63e-05,2]
[404403119,1770108766010,1227.41463025,7.629e-05,2]
[404403120,1770108767700,-280.77359984,7.63e-05,2]
[404403121,1770108769209,-313.97609342,7.63e-05,2]
[404403122,1770108770769,-203.46109691,7.63e-05,2]
[404403123,1770108773286,-252.76591589,7.63e-05,2]
[404403124,1770108775266,-154.90277233,7.63e-05,2]
[404403125,1770108776919,-184.59508807,7.63e-05,2]
[404403126,1770108776956,1017.76610925,7.629e-05,2]
[404403127,1770108776977,213.20675684,7.629e-05,2]
[404403128,1770108778460,-500.0,7.63e-05,2]
[404403129,1770108781294,-500.0,7.63e-05,2]
[404403130,1770108782842,-306.0443971,7.63e-05,2]
[404403131,1770108786071,-651.0,7.63e-05,2]
[404403132,1770108790020,-302.0,7.63e-05,2]
[404403133,1770108791433,1223.85639441,7.629e-05,2]
[404403134,1770108791652,-250.0,7.63e-05,2]
[404403135,1770108793960,-354.54012174,7.63e-05,2]
[404403136,1770108795903,-250.0,7.63e-05,2]
[404403137,1770108799059,-302.0,7.63e-05,2]
[404403138,1770108802898,-313.97609342,7.63e-05,2]
[404403139,1770108804948,1227.41463025,7.629e-05,2]
[404403140,1770108806160,-232.6908194,7.63e-05,2]
[404403141,1770108817849,1227.41463025,7.629e-05,2]
[404403142,1770108831843,1108.11758825,7.629e-05,2]
[404403143,1770108831865,119.297042,7.629e-05,2]
[404403144,1770108841885,150.0,7.629e-05,2]
[404403145,1770108842564,1227.41463025,7.629e-05,2]
[404403146,1770108844848,-1070.0,7.63e-05,2]
[404403147,1770108846876,329.71413635,7.629e-05,2]
[404403148,1770108851041,-250.0,7.63e-05,2]
[404403149,1770108853641,-342.604241,7.63e-05,2]
[404403150,1770108853734,1227.41463025,7.629e-05,2]
[404403151,1770108856059,-223.42942549,7.63e-05,2]
[404403152,1770108857489,-488.02390658,7.63e-05,2]
[404403153,1770108859101,290.26,7.6e-05,2]
[404403154,1770108860639,500.0,7.629e-05,2]
[404403155,1770108860685,500.0,7.629e-05,2]
[404403156,1770108860726,500.0,7.629e-05,2]
[404403157,1770108860764,155.90956115,7.629e-05,2]
[404403158,1770108860787,344.09043885,7.629e-05,2]
[404403159,1770108860830,500.0,7.629e-05,2]
[404403160,1770108860878,500.0,7.629e-05,2]
[404403161,1770108860935,500.0,7.629e-05,2]
[404403162,1770108860974,500.0,7.629e-05,2]
[404403163,1770108861023,500.0,7.629e-05,2]
[404403164,1770108861065,500.0,7.629e-05,2]
[404403165,1770108861115,500.0,7.629e-05,2]